Cogmind - Beta 10.2 @@@ ROGUE MODE // 2020.11.19 @ 04:21:42 // Halloween2020/ForbiddenLore Player: FLUX Result: Destroyed by VP-YUJ(z) with Makeshift Hammer Performance ------------- Evolutions (1) 500 Regions Visited (5) 1000 Robots Destroyed (55) 275 Value Destroyed (1341) 1341 Prototype IDs (7) 140 Alien Tech Used (0) 0 Bonus (665) 665 TOTAL SCORE: 3921 Bonus ------- High Alert Combat Kills 65 Met Imprinter 300 Was Imprinted 300 Cogmind --------- Core Integrity 0/400 Matter 248/300 Energy 221/265 System Corruption 29% Temperature Cool (0) Movement Walking (180) Ox2 Location -7/Zion Parts ------- > --- POWER (1) -------- Improved Ion Engine > --- PROPULSION (4) --- Aluminum Leg > --- UTILITY (2) ------ Experimental Core Analyzer Sensor Drone Bay (20/20) > --- WEAPON (2) ------- (None) > --- INVENTORY (4) ---- (None) Peak State ------------ > --- POWER ------------ Light Nuclear Core > --- PROPULSION ------- Aluminum Leg Aluminum Leg Aluminum Leg Aluminum Leg > --- UTILITY ---------- Advanced Targeting Computer Experimental Core Analyzer > --- WEAPON ----------- Spread Laser CR-A16's Pointy Stick > --- INVENTORY -------- Improved Ion Engine Aluminum Leg Aluminum Leg Sensor Drone Bay [Rating: 27] Favorites ----------- Power Ion Engine Engine Ion Engine Power Core Light Nuclear Core Propulsion Aluminum Leg Leg Aluminum Leg Wheel Wheel Hover Unit Hover Unit Utility Small Storage Unit Device Sensor Array Storage Small Storage Unit Processor Improved Targeting Computer Weapon Heavy Assault Rifle Energy Gun Spread Laser Ballistic Gun Heavy Assault Rifle Launcher Rocket Launcher Impact Weapon Flail Piercing Weapon CR-A16's Pointy Stick Build | -11 -10 -10 -9 -9 -7 ------- Run | Scr Mat Min Mat Min Zio Slots Evolved 2 | . . . 2 . . Power . | . . . . . . Propulsion 2 | . . . 2 . . Utility . | . . . . . . Weapon . | . . . . . . Parts Attached 80 | 8 19 2 39 1 11 Power 11 | 1 3 . 6 . 1 Engine 10 | 1 3 . 5 . 1 Core 1 | . . . 1 . . Reactor . | . . . . . . Propulsion 27 | 4 4 1 14 . 4 Treads . | . . . . . . Leg 23 | 2 4 1 12 . 4 Wheel 3 | 2 . . 1 . . Hover 1 | . . . 1 . . Flight . | . . . . . . Utility 18 | 1 6 . 5 1 5 Device 8 | . 3 . 3 1 1 Storage 5 | 1 3 . 1 . . Processor 5 | . . . 1 . 4 Hackware . | . . . . . . Protection . | . . . . . . Artifact . | . . . . . . Weapon 24 | 2 6 1 14 . 1 Energy Gun 3 | . 1 . 2 . . Energy Cannon . | . . . . . . Ballistic Gun 16 | 2 5 1 8 . . Ballistic Cannon . | . . . . . . Launcher 3 | . . . 3 . . Special Weapon . | . . . . . . Impact Weapon 1 | . . . 1 . . Slashing Weapon . | . . . . . . Piercing Weapon 1 | . . . . . 1 Special Melee Weapon . | . . . . . . Unidentified Prototypes 4 | . . . . 1 3 Parts Lost 15 | . . . 6 . 9 Power 2 | . . . 1 . 1 Propulsion 9 | . . . 4 . 5 Utility 1 | . . . . . 1 Weapon 3 | . . . 1 . 2 Highest Loss Streak 9 | . . . 3 . 9 Average Slot Usage (%) 96 | . 98 100 91 100 97 Engine 8 | . 14 14 7 . . Core 3 | . . . 3 11 10 Leg 34 | . 27 28 34 44 43 Device 11 | . 13 14 10 11 8 Storage 8 | . 14 14 9 . . Processor 4 | . . . 2 11 13 Energy Gun 5 | . . 14 4 11 10 Ballistic Gun 16 | . 27 14 14 11 . Piercing Weapon 1 | . . . . . 10 Naked Turns . | . . . . . . Heaviest Build 25 | 11 24 16 19 25 25 Greatest Support 40 | 20 20 20 40 40 40 Greatest Overweight (x) 5 | . 1 . 5 . 2 Average Overweight (x) . | . . . . . . Largest Inventory Capacity 10 | 6 10 6 6 4 4 Average Capacity 5 | 5 6 6 5 4 4 Most Carried 7 | 6 7 6 6 4 4 Average Carried 5 | 2 5 6 5 3 3 Final Capacity 6 | 6 6 6 4 4 4 Final Carried 6 | 4 6 6 4 4 . Class Distribution -------------------- 84% | Scavenger-Mutant 15% | Mutant Dominant Class ---------------- Scavenger-Mutant | -10/Materials Scavenger-Mutant | -10/Mines Scavenger-Mutant | -9/Materials Scavenger-Mutant | -9/Mines Scavenger-Mutant | -7/Zion Resources | -11 -10 -10 -9 -9 -7 ----------- Run | Scr Mat Min Mat Min Zio Matter Collected 1546 | 208 334 88 877 26 13 Remotely . | . . . . . . Salvage Created 1538 | . 291 47 1100 27 73 Parts 102 | . 21 6 65 3 7 Haulers Intercepted . | . . . . . . Recyclers Shooed 2 | . 1 . 1 . . Parts Field Recycled . | . . . . . . Retrieved Matter . | . . . . . . Parts Self-Destructed . | . . . . . . Prevented . | . . . . . . Kills | -11 -10 -10 -9 -9 -7 ------- Run | Scr Mat Min Mat Min Zio Combat Hostiles Destroyed 41 | . 9 3 26 3 . Guns 36 | . 9 3 21 3 . AOE 5 | . . . 5 . . Classes Destroyed 9 | . 4 . 4 . 1 Worker 3 | . 1 . 2 . . Builder 1 | . . . 1 . . Recycler 1 | . . . 1 . . Watcher 4 | . 2 . 2 . . Swarmer 15 | . 5 3 4 3 . Grunt 18 | . 4 . 14 . . Duelist 1 | . . . 1 . . Sentry 7 | . . . 7 . . Zionite 5 | . . . . . 5 Best Kill Streak 5 | . 4 2 5 3 4 Combat Bots Only 5 | . 2 2 5 3 . Max Kills in Single Turn 2 | . 1 1 2 2 1 Gunslinging 1 | . . . . 1 . Exploded 2 | . . . 2 . . Melee . | . . . . . . Uniques/NPCs Destroyed . | . . . . . . Combat | -11 -10 -10 -9 -9 -7 -------- Run | Scr Mat Min Mat Min Zio Damage Taken 2588 | . 505 116 1096 23 848 Core 519 | . 92 21 198 . 208 Absorbed by Shields . | . . . . . . Core Remaining (%) 77 | 100 . 54 . . . Volleys Fired 131 | . 42 7 78 4 . Largest 2 | . 2 2 2 2 . Hottest 88 | . 46 68 88 88 . Shots Fired 250 | . 84 14 143 8 1 Gun 238 | . 84 14 131 8 1 Cannon . | . . . . . . Launcher 12 | . . . 12 . . Special . | . . . . . . Kinetic 196 | . 84 7 101 4 . Thermal 26 | . . . 21 4 1 Explosive 12 | . . . 12 . . Electromagnetic 16 | . . 7 9 . . Robot Hit Streak 13 | . 13 2 13 5 4 Robot Miss Streak 6 | . 6 4 5 6 1 Penetration Max . | . . . . . . Secondary Targets 4 | . 1 . 2 1 . Max Gunslinging Chain 1 | . 1 . 1 1 . Shots Hit Robots 176 | . 50 4 107 7 8 Core Hits 90 | . 18 3 58 6 5 Critical Hits 3 | . . . 3 . . Critical Kills 2 | . . . 2 . . Critical Parts Destroyed 1 | . . . 1 . . Melee Attacks 12 | . . . 4 . 8 Impact 4 | . . . 4 . . Slashing . | . . . . . . Piercing 8 | . . . . . 8 Sneak Attacks 1 | . . . 1 . . Combat Hostiles . | . . . . . . Follow-up Attacks . | . . . . . . Damage Inflicted 3016 | . 527 87 2097 66 239 Guns 1965 | . 519 87 1288 66 5 Cannons . | . . . . . . Explosions 676 | . . . 676 . . Melee 346 | . . . 112 . 234 Ramming 29 | . 8 . 21 . . Kinetic 1584 | . 519 32 1004 29 . Thermal 327 | . . . 285 37 5 Explosive 609 | . . . 609 . . Electromagnetic 121 | . . 55 66 . . Impact 112 | . . . 112 . . Slashing . | . . . . . . Piercing 234 | . . . . . 234 Highest Corruption 29 | . . . . . 29 Average Corruption 9 | . . . . . 9 Corruption Purged . | . . . . . . Effects 4 | . . . . . 4 Message Errors 1 | . . . . . 1 Heat Flow Errors 1 | . . . . . 1 Energy Discharges 1 | . . . . . 1 Misfires 1 | . . . . . 1 Overload Shots . | . . . . . . Overflow Damage 42 | . . . 42 . . Projectiles . | . . . . . . Explosions 8 | . . . 8 . . Melee 34 | . . . 34 . . Knockbacks . | . . . . . . Impact . | . . . . . . Kinetic . | . . . . . . Secondary . | . . . . . . Self-Inflicted Damage 47 | . 1 . 46 . . Shots 2 | . . . 2 . . Rammed 2 | . 2 . . . . Targets Rammed 9 | . 3 . 6 . . Kicked 7 | . 1 . 6 . . Crushed . | . . . . . . Highest Temperature 302 | . 19 12 302 142 248 Average Temperature 52 | . 10 5 55 74 103 Received Heat Transfer 582 | . 129 . 354 . 99 Siege Activations . | . . . . . . Robots Corrupted . | . . . . . . Combat Hostiles . | . . . . . . Parts Fried . | . . . . . . Impact Corruptions 1 | . . . 1 . . Robots Melted . | . . . . . . Combat Hostiles . | . . . . . . Parts Melted . | . . . . . . Heat Transferred 569 | . . . 514 50 5 Parts Sabotaged . | . . . . . . Parts Stolen . | . . . . . . Parts Stripped . | . . . . . . Power Chain Reactions 1 | . . . 1 . . Missiles Intercepted . | . . . . . . Alert | -11 -10 -10 -9 -9 -7 ------- Run | Scr Mat Min Mat Min Zio Peak Influence 552 | . 125 155 552 284 . Initial 214 | . . 25 60 214 . Average 185 | . 56 78 326 229 . Maximum Alert Level 2 | . . . 2 1 . Low Security (%) 57 | 100 100 100 20 18 . Level 1 27 | . . . 44 81 . Level 2 14 | . . . 35 . . Level 3 . | . . . . . . Level 4 . | . . . . . . Level 5 . | . . . . . . High Security . | . . . . . . Max Security . | . . . . . . Squads Dispatched 6 | . 2 . 4 . . Investigation 3 | . 1 . 2 . . Extermination . | . . . . . . Reinforcement 3 | . 1 . 2 . . Assault . | . . . . . . Garrison . | . . . . . . Intercept . | . . . . . . Construction Impeded 1 | . . . 1 . . Haulers Reinforced . | . . . . . . Stealth | -11 -10 -10 -9 -9 -7 --------- Run | Scr Mat Min Mat Min Zio Distress Signals 6 | . 1 . 5 . . Communications Jammed . | . . . . . . Distress Signals . | . . . . . . Times Spotted 102 | . 19 14 45 3 21 Peak Tracking Total 16 | . 4 12 6 3 16 Tactical Retreats 8 | . 1 2 4 . 1 Traps | -11 -10 -10 -9 -9 -7 ------- Run | Scr Mat Min Mat Min Zio Traps Triggered 6 | . 4 . 2 . . Indirectly . | . . . . . . Trap Hack Attempts . | . . . . . . Triggered . | . . . . . . Disarmed . | . . . . . . Reprogrammed . | . . . . . . Reused . | . . . . . . Traps Extracted . | . . . . . . Installed . | . . . . . . Triggered . | . . . . . . Machines | -11 -10 -10 -9 -9 -7 ---------- Run | Scr Mat Min Mat Min Zio Machines Disabled 5 | . . . 5 . . Max in Single Turn 1 | . . . 1 . . Machines Sabotaged . | . . . . . . Garrisons Compromised . | . . . . . . Overloaded Fab Kills . | . . . . . . Fab Network Shutdowns . | . . . . . . Hacking | -11 -10 -10 -9 -9 -7 --------- Run | Scr Mat Min Mat Min Zio Machines Accessed 12 | . 7 . 4 1 . Terminals 10 | . 6 . 4 . . Fabricators . | . . . . . . Repair Stations 1 | . 1 . . . . Recycling Units . | . . . . . . Scanalyzers . | . . . . . . Garrison Access . | . . . . . . Total Hacks 33 | . 25 . 7 1 . Successful 24 | . 17 . 6 1 . Failed 8 | . 7 . 1 . . Catastrophic . | . . . . . . Database Lockouts 1 | . 1 . . . . Manual 13 | . 7 . 2 . 4 Terminals 30 | . 23 . 7 . . Fabricators . | . . . . . . Repair Stations 2 | . 2 . . . . Recycling Units . | . . . . . . Scanalyzers . | . . . . . . Garrison Access . | . . . . . . Terminal Hacks 22 | . 15 . 6 1 . Record 13 | . 11 . 2 . . Prototype ID Bank 2 | . 2 . . . . Open Door 1 | . . . . 1 . Emergency Access Points 1 | . . . 1 . . Alert Level 1 | . 1 . . . . Locate Traps 1 | . 1 . . . . Dispatch Records 2 | . . . 2 . . Hauler Manifests 1 | . . . 1 . . Fabricator Hacks . | . . . . . . Repair Station Hacks 2 | . 2 . . . . Scan Component 1 | . 1 . . . . Repair 1 | . 1 . . . . Recycling Unit Hacks . | . . . . . . Scanalyzer . | . . . . . . Garrison Access Hacks . | . . . . . . Unauthorized Hacks . | . . . . . . Terminals . | . . . . . . Fabricators . | . . . . . . Repair Stations . | . . . . . . Recycling Units . | . . . . . . Scanalyzers . | . . . . . . Garrison Access . | . . . . . . Data Cores Recovered . | . . . . . . Used . | . . . . . . Hacking Detections 4 | . 3 . 1 . . Full Trace Events 2 | . 1 . 1 . . Feedback Events . | . . . . . . Feedback Blocked . | . . . . . . Robot Schematics Acquired . | . . . . . . Robots Built . | . . . . . . Matter . | . . . . . . Time . | . . . . . . Total Robot Build Rating . | . . . . . . Part Schematics Acquired . | . . . . . . Parts Built . | . . . . . . Matter . | . . . . . . Time . | . . . . . . Total Part Build Rating . | . . . . . . Parts Repaired 1 | . 1 . . . . Time 13 | . 13 . . . . Parts Recycled . | . . . . . . Recycled Matter . | . . . . . . Retrieved Matter . | . . . . . . Retrieved Components . | . . . . . . Parts Scanalyzed . | . . . . . . Part Schematics Acquired . | . . . . . . Parts Damaged . | . . . . . . Bothacking | -11 -10 -10 -9 -9 -7 ------------ Run | Scr Mat Min Mat Min Zio Used RIF Installer . | . . . . . . Robots Hacked . | . . . . . . Non-combat . | . . . . . . Combat . | . . . . . . Robot Hacks Applied . | . . . . . . Relay Couplers Released . | . . . . . . Robots Rewired . | . . . . . . Allies Hacked . | . . . . . . Hacks Repelled . | . . . . . . Allies | -11 -10 -10 -9 -9 -7 -------- Run | Scr Mat Min Mat Min Zio Total Allies 7 | . . . . 3 4 Largest Group 7 | . . . . 3 7 Highest-Rated Group 196 | . . . . 40 196 Highest-Rated Ally 41 | . . . . 16 41 Total Orders 6 | . . . . 4 2 EXPLORE 4 | . . . . 3 1 RETURN 2 | . . . . 1 1 Ally Attacks 9 | . . . . . 9 Total Damage 97 | . . . . . 97 Kills . | . . . . . . Allies Corrupted . | . . . . . . Allies Melted . | . . . . . . Intel | -11 -10 -10 -9 -9 -7 ------- Run | Scr Mat Min Mat Min Zio Robot Analysis Total . | . . . . . . Derelict Logs Recovered 2 | . . . . 2 . Drone Launches 24 | . . . . 4 20 Drone Recoveries 24 | . . . . 4 20 Exploration | -11 -10 -10 -9 -9 -7 ------------- Run | Scr Mat Min Mat Min Zio Turns Passed 4576 | 80 1507 268 1553 492 676 Spaces Moved 3190 | 64 1057 201 978 384 506 Core 4 | 2 . . 1 . 1 Treads . | . . . . . . Legs 3125 | 27 1057 201 951 384 505 Wheels 61 | 35 . . 26 . . Hover . | . . . . . . Flight . | . . . . . . Fastest Speed 50 | 50 120 120 90 120 120 Average Speed 119 | 95 120 120 121 120 120 Slowest Speed 300 | 120 150 120 300 120 180 Overloaded Moves . | . . . . . . Propulsion Burnouts . | . . . . . . Robots Hopped . | . . . . . . Cave-ins Triggered . | . . . . . . Exploration Rate (%) 68 | 4 96 49 73 99 90 Regions Visited 5 Branch Regions 3 Pre-discovered Areas 2 | . . . . 1 1 Known Exits Taken 1 | . . . . 1 . Unknown Exits Taken 4 | 1 1 1 1 . . Scrap Searched 2 | . . 1 . 1 . Spaces Dug . | . . . . . . Terrain Destroyed 90 | . . . 90 . . Melee . | . . . . . . Projectile . | . . . . . . AOE 90 | . . . 90 . . Terrain Rammed . | . . . . . . Walls Destroyed . | . . . . . . Machines Disabled . | . . . . . . Actions | -11 -10 -10 -9 -9 -7 --------- Run | Scr Mat Min Mat Min Zio Total 3705 | 81 1231 214 1213 409 557 Wait 170 | . 57 2 68 17 26 Move 3185 | 63 1056 200 977 383 506 Hop . | . . . . . . Pick Up 52 | 7 27 1 13 2 2 Fast Attach 25 | 6 5 . 12 . 2 Attach 18 | 2 6 . 5 1 4 Detach 6 | . 3 . 1 . 2 Swap 37 | . 8 2 22 . 5 Drop 60 | 3 24 2 27 2 2 Fire 131 | . 42 7 78 4 . Melee 12 | . . . 4 . 8 Ram . | . . . . . . Kick 9 | . 3 . 6 . . Crush . | . . . . . . Escape Stasis . | . . . . . . Rewire . | . . . . . . Trap . | . . . . . . Miscellaneous . | . . . . . . Route ------- -11/Scrapyard -10/Materials (discovered 4 exits: *Mat x3 / [*Min]) -10/Mines (discovered 2 exits: *Mat x2) -9/Materials (discovered 3 exits: [*Mat] / *Min x2) -9/Mines (discovered 4 exits: [*Mat x2] / [*Exi] / *Zio) -7/Zion (discovered 1 exit: [*Pro]) History --------- Turn | Location | Event 9 | -11/Scrapyard | Discovered new exit (range 14) 81 | -11/Scrapyard | Entered Materials 295 | -10/Materials | Discovered new exit (range 3) 307 | -10/Materials | Build established: Mutant 654 | -10/Materials | Discovered new exit (range 15) 694 | -10/Materials | Discovered new exit (range 9) 716 | -10/Materials | Repaired Aluminum Leg 848 | -10/Materials | Discovered new exit (range 3) 1003 | -10/Materials | Build established: Scavenger-Mutant 1098 | -10/Materials | Central database locked down 1588 | -10/Materials | Entered Mines 1612 | -10/Mines | Received a Rocket Launcher from a helpful Derelict 1760 | -10/Mines | Discovered new exit (range 8) 1842 | -10/Mines | Discovered new exit (range 9) 1844 | -10/Mines | Assembled infested the area 1849 | -10/Mines | Assisted by a Guerilla fighting off Assembled 1856 | -10/Mines | Entered Materials 1856 | -9/Materials | Evolved 2 slots: Propulsion x2 2417 | -9/Materials | Lost 3 parts (1p2n) 2614 | -9/Materials | Discovered new exit (range 12) 3036 | -9/Materials | Discovered new exit (range 3) 3147 | -9/Materials | Discovered new exit (range 16) 3409 | -9/Materials | Entered Mines 3419 | -9/Mines | Found the Drone Emporium 3427 | -9/Mines | Found Prototype Device 3428 | -9/Mines | Identified Sensor Drone Bay 3512 | -9/Mines | Learned Materials non-interactive machine intel 3567 | -9/Mines | Deemed a non-threat by the Exiles lab entrance 3567 | -9/Mines | Discovered new exit (range 5) 3605 | -9/Mines | Discovered new exit (range 38) 3607 | -9/Mines | Discovered new exit (range 36) 3646 | -9/Mines | A Derelict revealed a hidden shortcut to a safe place 3665 | -9/Mines | Identified exit to Zion 3742 | -9/Mines | Assisted by bots powering up and referring to "LRC-V3" 3748 | -9/Mines | Learned location of Zion (-7) 3901 | -9/Mines | Entered Zion 3901 | -7/Zion | Accompanied by 3 allies 3923 | -7/Zion | Found CR-A16's Pointy Stick 4128 | -7/Zion | Received a visual enhancement algorithm 4148 | -7/Zion | Given A8's code to call for help 4178 | -7/Zion | Discovered new exit (range 124) 4222 | -7/Zion | Imprinted 4224 | -7/Zion | Declared Zion's savior 4401 | -7/Zion | Found Prototype Processor 4402 | -7/Zion | Identified Exp. Targeting Computer 4405 | -7/Zion | Found Prototype Processor 4405 | -7/Zion | Identified Exp. Target Analyzer 4410 | -7/Zion | Found Prototype Processor 4410 | -7/Zion | Identified Exp. Core Analyzer 4509 | -7/Zion | Attacked by Zionites 4535 | -7/Zion | Core integrity fell below 50% 4552 | -7/Zion | System corruption reached 10% 4559 | -7/Zion | Core integrity fell below 20% 4577 | -7/Zion | Destroyed by VP-YUJ(z) with Makeshift Hammer Last Messages --------------- 04553_ System corrupted by crushing effect (+3). 04554_ Aluminum Leg destroyed. 04554_ System corrupted by crushing effect (+3). MU-HJ9(z) bursts out of the Twisted Machinery. 04555_ Spread Laser destroyed. 04555_ Lgt. Nuclear Core destroyed. 04555_ System corrupted by crushing effect (+4). 04555_ System corrupted by crushing effect (+2). 04556_ Adv. Targeting Computer destroyed. 04556_ Aluminum Leg destroyed. 04556_ System corrupted by crushing effect (+2). 04556_ System corrupted by crushing effect (+3). 04556_ Knocked back. 04557_ Aluminum Leg destroyed. 04564_ FF-QSC(z) pulls a Mak. Sword out of the Twisted Machinery. 04566_ D2-L6L(z) emerges from the Twisted Machinery. 04570_ BI-BW9(z) pulls a Mak. Laser out of the Twisted Machinery. 04572_ 63-YNM(z) pulls a Mak. Laser out of the Twisted Machinery. 04572_ VP-YUJ(z) pulls a Mak. Hammer out of the Twisted Machinery. 04574_ Aluminum Leg destroyed. Map ----- +----------------------------------------------------+ | """ "#??????????????? | | """"" """ "#??????????????? | | """"" "" "##?????????????? | | """ """""""""" #"" ""#?????????????? | | """"""""""" #""" ""##?????????????? | | ""#???"#""" """" "" ""##?????????????? | | """"""#?????##"" """""""" """##????????????? | | """??????????#"" """"##"" """#????????????? | | ?????????????#"" """#""" ""##????????????? | | ??????????####"" """""" """#?????????????? | | ??????????#"""" """"" """"##?????????????? | | ??????????#""" """" """"##??????????????? | | ?????????###" """ "#""###?????????????? | | ?????????#""" """ """"#"#?????????????? | | ?????????#""" " "" """"#?#####????????? | | ?????????##""" """" "#?# "########## | | ??????????###"" """" #?# """"""""""" | | ??????#??###"""" """" ### """"""""""" | | ??????"!?# """" """"" "# | | ????#"" "" """ """"" | | ????# "" """"""" | | ????#" "# #" """"""" ""# | | ????##"""## " """"""" "#### """"""""""" | | ?????##""# "" ""### """"""""""" | | ??????####### z """ """## "########## | | ????????????# """@z"""""""#######????????? | | ????????????#" z """"""#"#?????????????? | | ????????????#"" z """""####?????????????? | | ???????????#""#" zz "" ""#???????????????? | | ???????????#"##" z ""#???????????????? | | ???????????##?#" " z ""#???????????????? | | ??????????##"##" """ z ""##???????????????? | | ????????###"##"" """ """#????????????????? | | ##?????##""""""" """ """#????????????????? | | "#######""""" M """ """####??????????????? | | """"#"##"" MM""""""##"""#??????????????? | | """""""""" M """#"""""""##??????????????? | | "#"#""" ""#??????????????? | | ""##""" ""#??????????????? | | #"#"" "#???????????????? | | " =% "##??????????????? | | """ "" /*=% ""##?????????????? | | """ "" "" %%%= "" """#?????????????? | | """ """ """""""" "" ""#?????????????? | | """ "" """ "#""""""""" ""#?????????????? | | """ "" ""#" ""##"###"" ""##?????????????? | | " "" """" ""######""" """#??????????????? | | " """""""" ""#""###"" """"#??????????????? | | " "" """#""" """"#""" ""###??????????????? | | " """"""#""" % "=""""" ""#????????????????? | +----------------------------------------------------+ Best States ------------- Heat Dissipation 42 Energy Generation 14 Energy Capacity 265 Matter Stores 300 Matter Capacity 300 Sight Range 16 Robot Scan Range 13 Terrain Scan Density 10 Evasion (%) 44 Targeting Accuracy 8 Core Analysis 15 Item Schematics ----------------- None Robot Schematics ------------------ None Fabricated ------------ Nothing Alien Tech Used ----------------- None Achievements -------------- I Survived The Infestation Librarian Novice Programmer Release The Drones! Shopping List System Compromised The More The Merrier Challenges ------------ None Game ------ Seed SpreadTargetRigger Manual? 0 Play Time 02:24:22 Cumulative 14.3 hours Start 2020.11.18 @ 18:11:05 End 2020.11.19 @ 04:21:42 Sessions 9 Manual Loads 0 Difficulty Rogue Special Mode Halloween2020/ForbiddenLore Game No. 15 Rogue 15 Adventurer 0 Explorer 0 Win Type - Total 0 Types 0/0/0/0/0/0/0/0/0 Lore% 11 Gallery% 12 Achievement% 9 Wizard Run 0 Options --------- ASCII 1 Keyboard 1 Movement Numpad Keybinds 0 Fullscreen 1 Font 18/SmallcapsGlow Map View 76x50 Tactical HUD 1 Map Filters NONE Filters NONE Steam 1 RUN: 8e51b3b3-bd54-4a41-91ef-5c403cc567fe